Cogmind - Beta 13 *** ADVENTURER MODE // 2024.04.06 @ 02:50:37 Player: Doske Result: Destroyed by D-53 Grenadier with Mini Grenade Launcher Performance ------------- Evolutions (0) 0 Regions Visited (2) 400 Robots Destroyed (28) 140 Value Destroyed (745) 745 Prototype IDs (0) 0 Alien Tech Used (0) 0 Bonus (0) 0 TOTAL SCORE: 1285 Bonus ------- None Cogmind --------- Core Integrity 0/250 Matter 88/300 Energy 100/100 System Corruption 2% Temperature Cool (0) Movement Core (350) Ox6 Location -10/Mines Parts ------- > --- POWER (1) -------- (None) > --- PROPULSION (2) --- (None) > --- UTILITY (2) ------ Large Storage Unit > --- WEAPON (2) ------- (None) > --- INVENTORY (15) --- Ion Engine Light Ion Engine Small Storage Unit Terrain Scanner Small Laser Assault Rifle Grenade Launcher Datajack Mining Laser Maul Makeshift Axe Peak State ------------ > --- POWER ------------ Ion Engine > --- PROPULSION ------- Light Treads Light Treads > --- UTILITY ---------- Small Storage Unit Structural Scanner > --- WEAPON ----------- Assault Rifle Maul > --- INVENTORY -------- Light Ion Engine Wheel Small Laser Assault Rifle Grenade Launcher Grenade Launcher [Rating: 8] Favorites ----------- Power Ion Engine Engine Ion Engine Propulsion Light Treads Treads Light Treads Wheel Wheel Utility Structural Scanner Device Structural Scanner Storage Large Storage Unit Weapon Assault Rifle Ballistic Gun Assault Rifle Launcher Grenade Launcher Impact Weapon Maul Build | -11 -10 -10 ------- Run | Yrd Mat Min Slots Evolved . | . . . Power . | . . . Propulsion . | . . . Utility . | . . . Weapon . | . . . Parts Attached 17 | 7 6 4 Power 2 | 1 . 1 Engine 2 | 1 . 1 Core . | . . . Reactor . | . . . Propulsion 5 | 3 1 1 Treads 3 | 2 1 . Leg . | . . . Wheel 2 | 1 . 1 Hover . | . . . Flight . | . . . Utility 3 | 1 2 . Device 1 | . 1 . Storage 2 | 1 1 . Processor . | . . . Hackware . | . . . Protection . | . . . Artifact . | . . . Weapon 7 | 2 3 2 Energy Gun . | . . . Energy Cannon . | . . . Ballistic Gun 4 | 2 1 1 Ballistic Cannon . | . . . Launcher 2 | . 1 1 Special Weapon . | . . . Impact Weapon 1 | . 1 . Slashing Weapon . | . . . Piercing Weapon . | . . . Special Melee Weapon . | . . . Unidentified Prototypes . | . . . Parts Lost 8 | . . 8 Power 2 | . . 2 Propulsion 3 | . . 3 Utility 1 | . . 1 Weapon 2 | . . 2 Highest Loss Streak 4 | . . 4 To Critical Strikes . | . . . Average Slot Usage (%) 96 | . 98 92 Engine 13 | . 14 13 Treads 25 | . 27 22 Wheel 1 | . . 2 Device 12 | . 13 11 Storage 14 | . 14 14 Ballistic Gun 23 | . 21 24 Launcher 3 | . 3 2 Impact Weapon 1 | . 2 . Naked Turns . | . . . Heaviest Build 31 | 14 31 28 Greatest Support 40 | 40 40 40 Greatest Overweight (x) 6 | . . 6 Average Overweight (x) . | . . . Largest Inventory Capacity 15 | 8 15 15 Average Capacity 12 | 6 11 15 Most Carried 12 | 4 10 12 Average Carried 7 | 2 6 10 Final Capacity 15 | 8 15 15 Final Carried 11 | 3 10 11 Class Distribution -------------------- 100% | Mutant Dominant Class ---------------- Mutant | -10/Materials Mutant | -10/Mines Resources | -11 -10 -10 ----------- Run | Yrd Mat Min Matter Collected 607 | 208 130 269 Remotely . | . . . Salvage Created 709 | . 388 321 Parts 50 | . 36 14 Haulers Intercepted . | . . . Recyclers Shooed 1 | . . 1 Parts Field Recycled . | . . . Retrieved Matter . | . . . Parts Self-Destructed . | . . . Prevented . | . . . Kills | -11 -10 -10 ------- Run | Yrd Mat Min Combat Hostiles Destroyed 33 | . 11 22 Melee 3 | . 3 . Guns 13 | . 6 7 AOE 17 | . 2 15 Classes Destroyed 8 | . 6 2 Worker 2 | . 2 . Builder 2 | . 2 . Tunneler 1 | . 1 . Watcher 2 | . 2 . Swarmer 6 | . 3 3 Grunt 14 | . 8 6 Demolisher 1 | . . 1 Assembled 12 | . . 12 Best Kill Streak 12 | . 5 12 Combat Bots Only 12 | . 3 12 Max Kills in Single Turn 4 | . 3 4 Gunslinging . | . . . Exploded 4 | . 1 4 Melee 1 | . 1 . Uniques/NPCs Destroyed . | . . . Combat | -11 -10 -10 -------- Run | Yrd Mat Min Hostile Shots Fired 135 | . 71 64 Missed 37 | . 24 13 Damage Taken 1106 | . 465 641 Core 262 | . 73 189 Absorbed by Shields . | . . . Ignored by Resistances 339 | . 147 192 Regen/Repaired (Parts) 68 | . 68 . Core Remaining (%) 100 | 100 . . Volleys Fired 62 | . 22 40 Largest 2 | . 2 2 Hottest 50 | . 50 50 Shots Fired 109 | . 38 71 Gun 81 | . 27 54 Cannon . | . . . Launcher 28 | . 11 17 Special . | . . . Kinetic 81 | . 27 54 Thermal . | . . . Explosive 28 | . 11 17 Electromagnetic . | . . . Robot Hit Streak 19 | . 12 19 Robot Miss Streak 2 | . 2 1 Penetration Max . | . . . Secondary Targets 2 | . 1 1 Max Gunslinging Chain 1 | . 1 1 Shots Hit Robots 75 | . 25 50 Core Hits 73 | . 24 49 Critical Kills . | . . . Critical Parts Destroyed 2 | . 2 . Critical Strikes 2 | . 2 . Smash 2 | . 2 . Melee Attacks 10 | . 10 . Impact 10 | . 10 . Slashing . | . . . Piercing . | . . . Sneak Attacks 1 | . 1 . Combat Hostiles . | . . . Follow-up Attacks . | . . . Damage Inflicted 2536 | . 1013 1523 Guns 749 | . 216 533 Cannons . | . . . Explosions 1392 | . 434 958 Melee 337 | . 337 . Ramming 58 | . 26 32 Kinetic 749 | . 216 533 Thermal . | . . . Explosive 1392 | . 434 958 Electromagnetic . | . . . Impact 337 | . 337 . Slashing . | . . . Piercing . | . . . Highest Corruption 2 | . . 2 Average Corruption 2 | . . 2 Corruption Purged . | . . . Corruption Blocked . | . . . Effects 1 | . . 1 Message Errors 1 | . . 1 Overload Shots . | . . . Overflow Damage 224 | . 208 16 Projectiles . | . . . Explosions 16 | . . 16 Melee 208 | . 208 . Knockbacks 3 | . 3 . Impact 3 | . 3 . Kinetic . | . . . Secondary . | . . . Self-Inflicted Damage 65 | . 65 . Shots 3 | . 3 . Rammed 9 | . 5 4 Targets Rammed 9 | . 5 4 Kicked . | . . . Crushed . | . . . Highest Temperature 20 | . 16 20 Average Temperature 7 | . 7 7 Received Heat Transfer 466 | . 225 241 Siege Activations . | . . . Robots Corrupted . | . . . Combat Hostiles . | . . . Parts Fried 3 | . 3 . Impact Corruptions 6 | . 6 . Robots Melted . | . . . Combat Hostiles . | . . . Parts Melted . | . . . Heat Transferred . | . . . Parts Sabotaged . | . . . Parts Stolen . | . . . Parts Stripped . | . . . Power Chain Reactions . | . . . Alert | -11 -10 -10 ------- Run | Yrd Mat Min Peak Influence 230 | . 230 208 Initial 9 | . . 9 Average 73 | . 76 77 Maximum Alert Level 1 | . 1 1 Low Security (%) 92 | 100 85 99 Level 1 7 | . 14 . Level 2 . | . . . Level 3 . | . . . Level 4 . | . . . Level 5 . | . . . High Security . | . . . Max Security . | . . . Squads Dispatched 2 | . 2 . Investigation 2 | . 2 . Extermination . | . . . Reinforcement . | . . . Assault . | . . . Garrison . | . . . Intercept . | . . . Searches Triggered . | . . . Construction Impeded . | . . . Haulers Reinforced . | . . . Active Scanning Responses . | . . . Cargo Convoy Interrupts . | . . . Stealth | -11 -10 -10 --------- Run | Yrd Mat Min Distress Signals 1 | . 1 . Communications Jammed . | . . . Distress Signals . | . . . Times Spotted 42 | . 17 25 Peak Tracking Total 9 | . 5 9 Tactical Retreats . | . . . Traps | -11 -10 -10 ------- Run | Yrd Mat Min Traps Triggered 1 | . 1 . Indirectly . | . . . Trap Hack Attempts . | . . . Triggered . | . . . Disarmed . | . . . Reprogrammed . | . . . Reused . | . . . Traps Extracted . | . . . Installed . | . . . Triggered . | . . . Machines | -11 -10 -10 ---------- Run | Yrd Mat Min Machines Disabled 4 | . 3 1 Max in Single Turn 1 | . 1 1 Machines Repaired . | . . . Machines Dismantled . | . . . Machines Sabotaged . | . . . Overloaded Fab Kills . | . . . Hacking | -11 -10 -10 --------- Run | Yrd Mat Min Machines Accessed 3 | . 3 . Terminals 2 | . 2 . Fabricators . | . . . Repair Stations 1 | . 1 . Recycling Units . | . . . Scanalyzers . | . . . Garrison Access . | . . . Total Hacks 10 | . 10 . Successful 5 | . 5 . Failed 5 | . 5 . Catastrophic . | . . . Database Lockouts . | . . . Manual 8 | . 8 . Terminals 8 | . 8 . Fabricators . | . . . Repair Stations 2 | . 2 . Recycling Units . | . . . Scanalyzers . | . . . Garrison Access . | . . . Terminal Hacks 2 | . 2 . Branch Access Points 1 | . 1 . Emergency Access Points 1 | . 1 . Fabricator Hacks . | . . . Repair Station Hacks 2 | . 2 . Scan Component 1 | . 1 . Repair 1 | . 1 . Recycling Unit Hacks . | . . . Scanalyzer . | . . . Garrison Access Hacks . | . . . Unauthorized Hacks 1 | . 1 . Terminals 1 | . 1 . Botnet 1 | . 1 . Fabricators . | . . . Repair Stations . | . . . Recycling Units . | . . . Scanalyzers . | . . . Garrison Access . | . . . Data Cores Recovered . | . . . Used . | . . . Hacking Detections 3 | . 3 . Full Trace Events 1 | . 1 . Feedback Events . | . . . Feedback Blocked . | . . . Robot Schematics Acquired . | . . . Robots Built . | . . . Authchips . | . . . Time . | . . . Total Robot Build Rating . | . . . Part Schematics Acquired . | . . . Parts Built . | . . . Authchips . | . . . Time . | . . . Total Part Build Rating . | . . . Parts Repaired 1 | . 1 . Time 26 | . 26 . Parts Recycled . | . . . Recycled Matter . | . . . Retrieved Matter . | . . . Retrieved Components . | . . . Parts Scanalyzed . | . . . Part Schematics Acquired . | . . . Parts Damaged . | . . . Bothacking | -11 -10 -10 ------------ Run | Yrd Mat Min Used RIF Installer . | . . . Robots Hacked . | . . . Non-combat . | . . . Combat . | . . . Robot Hacks Applied . | . . . Relay Couplers Released . | . . . Fabnet Peak Effective % . | . . . Robots Rewired . | . . . Allies Hacked . | . . . Hacks Repelled . | . . . Allies | -11 -10 -10 -------- Run | Yrd Mat Min Total Allies . | . . . Largest Group . | . . . Highest-Rated Group . | . . . Highest-Rated Ally . | . . . Total Orders . | . . . Ally Attacks . | . . . Total Damage . | . . . Kills . | . . . Allies Corrupted . | . . . Allies Melted . | . . . Intel | -11 -10 -10 ------- Run | Yrd Mat Min Robot Analysis Total . | . . . Derelict Logs Recovered . | . . . Drone Launches . | . . . Drone Recoveries . | . . . Exploration | -11 -10 -10 ------------- Run | Yrd Mat Min Turns Passed 1570 | 69 815 686 Spaces Moved 823 | 38 415 370 Core 5 | 4 . 1 Treads 745 | 31 415 299 Legs . | . . . Wheels 73 | 3 . 70 Hover . | . . . Flight . | . . . Fastest Speed 50 | 50 160 110 Average Speed 155 | 142 160 151 Slowest Speed 350 | 160 160 350 Overloaded Moves . | . . . Propulsion Burnouts . | . . . Robots Hopped . | . . . Cave-ins Triggered . | . . . Exploration Rate (%) 52 | 4 83 69 Regions Visited 2 Branch Regions 1 Pre-discovered Areas . | . . . Known Exits Taken 1 | . 1 . Unknown Exits Taken 1 | 1 . . Scrap Searched 1 | . . 1 Spaces Dug . | . . . Terrain Destroyed 117 | . 49 68 Melee . | . . . Projectile . | . . . AOE 117 | . 49 68 Terrain Rammed . | . . . Walls Destroyed . | . . . Machines Disabled . | . . . Actions | -11 -10 -10 --------- Run | Yrd Mat Min Total 981 | 53 504 424 Wait 39 | . 36 3 Move 821 | 37 414 370 Hop . | . . . Pick Up 22 | 9 10 3 Fast Attach . | . . . Attach 10 | 6 2 2 Detach . | . . . Swap 7 | 1 4 2 Drop 1 | . 1 . Fire 62 | . 22 40 Melee 10 | . 10 . Ram . | . . . Kick . | . . . Crush 9 | . 5 4 Escape Stasis . | . . . Rewire . | . . . Trap . | . . . Miscellaneous . | . . . Route ------- -11/Scrapyard -10/Materials (discovered 4 exits: [*Mat x3] / *Min) -10/Mines (discovered 3 exits: [*Mat] / [*Exi] / [Sub]) History --------- Turn | Location | Event 9 | -11/Scrapyard | Discovered new exit (range 16) 70 | -11/Scrapyard | Entered Materials 142 | -10/Materials | Discovered new exit (range 3) 193 | -10/Materials | Identified exit to Mines 317 | -10/Materials | Build established: Mutant 401 | -10/Materials | Discovered new exit (range 13) 634 | -10/Materials | Repaired Lgt. Treads 700 | -10/Materials | Discovered new exit (range 13) 885 | -10/Materials | Entered Mines 991 | -10/Mines | Deemed a non-threat by the Exiles lab entrance 991 | -10/Mines | Discovered new exit (range 6) 1095 | -10/Mines | Discovered new exit (range 3) 1096 | -10/Mines | Discovered new exit (range 9) 1144 | -10/Mines | A weapon hastily lodged in a ceiling crevice suddenly fell to the ground 1296 | -10/Mines | Core integrity fell below 50% 1418 | -10/Mines | Assembled infested the area 1471 | -10/Mines | Destroyed 12 combat bots 1479 | -10/Mines | Lost 3 parts (2n1u) 1568 | -10/Mines | Core integrity fell below 20% 1571 | -10/Mines | Destroyed by D-53 Grenadier with Mini Grenade Launcher Last Messages --------------- 01450_ Pressure Siphon disabled. 01451_ The unstable cave ceiling collapses. 01461_ Acquired 2 matter. 01464_ Acquired 8 matter. 01473_ The unstable cave ceiling collapses. 01490_ as-68960 destroyed. 01512_ G-47 Trooper destroyed. 01515_ The unstable cave ceiling collapses. 01521_ G-34 Mercenary destroyed. 01522_ The unstable cave ceiling collapses. 01539_ R-06 Scavenger collects Imp. Heat Sink. 01540_ The unstable cave ceiling collapses. 01560_ Assault Rifle destroyed. 01562_ Lgt. Ion Engine destroyed. 01564_ The unstable cave ceiling collapses. 01566_ D-53 Grenadier destroyed. 01567_ J||LX#NMBOTBQHP%HRM0X73 01567_ The unstable cave ceiling collapses. 01567_ Wheel destroyed. 01569_ Grenade Launcher destroyed. Map ----- +----------------------------------------------------+ | ?????????????????????## """ ##?## """ ##?#### | | ?????????????????????## ##?## """ ##?### | | ?????????????????????## ##?## ! = ##?## | | ?????????? ####??????## ##?#### ######?## | | ?????????? #####?????## ##?#### ######?## """ | | ???????? ######??### #####???## ##?####### """ | | ??????? ######?### #####???## ##?####### """ | | ???????? ###??## ##?????### ##?## ## | | ???????? ##??## ##????#### ##### | | ????????## ##??## ######### ##### | | ????????### ##???## ######## #### # | | ???????#### ##???##[[ ##### | | ??????##### ###???##=######### ###### | | ??????### ####??## ######### #### #####?## | | ??????## ####?## ##???### ##### ####??## | | ?????### """ ###### ##???## ##### ##????## | | ?????### """ ##### ##???## #### ##?##### | | ?????## """ ######## #### ######## | | ??##### #### ######## ##### #### # | | ?## ## ### ##### ###### ### | | ?# # #################### ###### ## | | ## ### # # ### #### ###### | | # # ## ### | | # # ## ### ## | | ## d #### | | #### "" @ ####? | | ??## "" ### ######?? | | ??## ### ######??? | | ???# ## # ### """ ###?????? | | ??# #### # # ### ### """ ###?????? | | ??# #??????####?########### """ ####????? | | ??# ?????????????????###### ####???? | | ??# ##?????????????????????## ####??? | | ??## ## ??????????????????????## ###??? | | ???# ??????????????????????## ##?## | | ???# ##???????????????????????### ##?## | | ??? ?????????????????????????#### ###### | | ?? ??????????????????????????#### ####### | | ?? ????????????????????????????### ## ### | | ? ?????????????????????????? ## ## | | # ??????????????????????????##### ##